fUSD/lending_fUSD_20260208
["ID","MTS","AMOUNT","RATE_DAILY","PERIOD"]
[404807041,1770581465885,-257.77901531,0.00044259,30]
[404807042,1770581465895,-294.28511607,0.00044259,30]
[404807043,1770581465905,-163.94263501,0.00044259,30]
[404807044,1770581465915,-248.62328927,0.00044259,30]
[404807045,1770581465924,-227.22910341,0.00044259,30]
[404807046,1770581465934,-154.37259135,0.00044259,30]
[404807047,1770581465944,-154.91692444,0.00044259,30]
[404807048,1770581465954,-153.76400533,0.00044259,30]
[404807049,1770581465964,-249.09050768,0.00044259,30]
[404807050,1770581465974,-156.31954289,0.00044259,30]
[404807051,1770581465984,-63.93743558,0.00044261,34]
[404807052,1770581465995,-19615.472205,0.00044261,34]
[404807053,1770581466006,-3696.7,0.00044261,34]
[404807054,1770581466017,-9888.75,0.00044261,34]
[404807055,1770581466034,-778.43078015,0.00044261,34]
[404807056,1770581468297,300.0,0.00033933,120]
[404807057,1770581468443,300.0,0.00035501,120]
[404807058,1770581468567,300.0,0.00035501,120]
[404807059,1770581468684,300.0,0.00035501,120]
[404807060,1770581469679,500.0,0.00033933,120]
[404807061,1770581469801,543.70924244,0.00035501,120]
[404807062,1770581578869,414.49974091,0.00033982,30]
[404807063,1770581705564,150.0,0.00033455,30]
[404807064,1770581705713,200.0,0.0003351,30]
[404807065,1770581761713,500.0,0.00033481,30]
[404807066,1770581761949,500.0,0.00033481,30]
[404807067,1770581786722,500.0,0.00033481,30]
[404807068,1770581828851,193.49422272,0.0003003,120]
[404807069,1770581830250,300.0,0.0003003,120]
[404807070,1770581831059,500.0,0.0003003,120]
[404807071,1770581887596,500.0,0.00035342,30]
[404807072,1770581887643,166.43971656,0.00035342,30]
[404807073,1770581887780,500.0,0.00035397,30]
[404807074,1770581887945,500.0,0.00035452,30]
[404807075,1770581888001,150.0,0.00035342,30]
[404807076,1770581888053,150.0,0.00033455,30]
[404807077,1770581888107,150.0,0.00035506,30]
[404807078,1770581888166,150.0,0.00035397,30]
[404807079,1770581888362,180.53234809,0.00035342,30]
[404807080,1770581888411,500.0,0.00035342,30]
[404807081,1770581888458,500.0,0.00035342,30]
[404807082,1770581888584,500.0,0.00035397,30]
[404807083,1770581888749,500.0,0.00035452,30]
[404807084,1770581888798,534.05277609,0.00035397,30]
[404807085,1770581888848,150.0,0.00035342,30]
[404807086,1770581888903,500.0,0.00035506,30]
[404807087,1770581888998,150.0,0.00035397,30]
[404807088,1770581889067,500.0,0.00035561,30]
[404807089,1770581889155,150.0,0.00035452,30]
[404807090,1770581889225,500.0,0.00035616,30]
[404807091,1770581889318,200.0,0.00035506,30]
[404807092,1770581921103,500.0,0.00033481,30]
[404807093,1770581921331,562.93781243,0.00033481,30]
[404807094,1770581963931,150.0,0.00035342,30]
[404807095,1770581964002,150.0,0.00035342,30]
[404807096,1770581964176,153.0440812,0.00035397,30]
[404807097,1770581964331,150.0,0.00035397,30]
[404807098,1770581964492,150.0,0.00035452,30]
[404807099,1770581964543,150.0,0.00035342,30]
[404807100,1770581964637,500.0,0.00035342,30]
[404807101,1770581964694,201.77401449,0.00035506,30]
[404807102,1770581964744,150.0,0.00035397,30]
[404807103,1770581964859,500.0,0.00035397,30]
[404807104,1770581964912,204.11430393,0.00035452,30]
[404807105,1770581965033,500.0,0.00035452,30]
[404807106,1770581965237,500.0,0.00035506,30]
[404807107,1770581965416,500.0,0.00035561,30]
[404807108,1770581965586,500.0,0.00035616,30]
[404807109,1770581980478,177.43847801,0.00033481,30]
[404807116,1770582064964,531.11371385,0.00033481,30]
[404807117,1770582080942,500.0,0.00028315,30]
[404807118,1770582090843,150.0,0.00035342,30]
[404807119,1770582091281,150.0,0.00035342,30]
[404807120,1770582091540,150.0,0.00035342,30]
[404807121,1770582094260,500.0,0.00028315,30]
[404807122,1770582127432,150.0,0.00035342,30]
[404807123,1770582127574,150.0,0.00035397,30]
[404807124,1770582127744,150.0,0.00035452,30]
[404807125,1770582127922,250.0,0.00035506,30]
[404807126,1770582127972,150.0,0.00035342,30]
[404807127,1770582128073,150.0,0.00035397,30]
[404807128,1770582128121,500.0,0.00035342,30]
[404807129,1770582128179,500.0,0.00035342,30]
[404807130,1770582128231,200.0,0.00035452,30]
[404807131,1770582128303,500.0,0.00035397,30]
[404807132,1770582128352,500.0,0.00035397,30]
[404807133,1770582128442,500.0,0.00035452,30]
[404807134,1770582128494,500.0,0.00035452,30]
[404807135,1770582128623,463.96761622,0.00035506,30]
[404807136,1770582128685,155.36603291,0.00035506,30]
[404807137,1770582128733,152.22428252,0.00035342,30]
[404807138,1770582128783,500.0,0.00035342,30]
[404807139,1770582128865,500.0,0.00035397,30]
[404807140,1770582129039,174.81742017,0.00035342,30]
[404807141,1770582129090,647.37651521,0.00035452,30]
[404807143,1770582307953,36543.47269478,0.00018,2]
[404807144,1770582307980,73701.57638209,0.00018,2]
[404807145,1770582324927,166.66,0.00026096,30]
[404807146,1770582325128,166.66,0.00026645,30]
[404807147,1770582325336,166.66,0.00027195,30]
[404807148,1770582325569,166.66,0.00027744,30]
[404807149,1770582325775,166.66,0.00028294,30]
[404807150,1770582325996,166.66,0.00028843,30]
[404807153,1770582373594,3454.61,0.00027524,120]
[404807154,1770582444517,150.0,0.00035342,30]
[404807155,1770582444678,150.0,0.00035397,30]
[404807156,1770582444728,500.0,0.00035342,30]
[404807157,1770582444854,500.0,0.00035397,30]
[404807158,1770582444908,150.0,0.00035452,30]
[404807159,1770582444956,150.63130927,0.00035342,30]
[404807160,1770582445014,500.0,0.00035452,30]
[404807161,1770582445064,150.0,0.00035506,30]
[404807162,1770582445188,150.0,0.00035561,30]
[404807163,1770582445238,500.0,0.00035506,30]
[404807164,1770582445289,150.0,0.00035342,30]
[404807165,1770582445341,250.0,0.00035616,30]
[404807166,1770582445405,150.0,0.00035397,30]
[404807167,1770582445971,500.0,0.00035342,30]
[404807168,1770582446111,150.0,0.00035342,30]
[404807169,1770582446167,500.0,0.00035397,30]
[404807170,1770582446237,150.0,0.00035342,30]
[404807171,1770582446321,150.0,0.00035342,30]
[404807172,1770582446478,150.0,0.00035397,30]
[404807173,1770582446527,150.0,0.00035397,30]
[404807174,1770582446578,150.0,0.00035397,30]
[404807175,1770582446629,500.0,0.00035342,30]
[404807176,1770582446692,150.0,0.00035452,30]
[404807177,1770582446743,150.0,0.00035452,30]
[404807178,1770582446793,500.0,0.00035397,30]
[404807179,1770582446842,500.0,0.00035452,30]
[404807180,1770582446890,150.0,0.00035506,30]
[404807181,1770582446941,150.0,0.00035506,30]
[404807182,1770582446990,500.0,0.00035506,30]
[404807183,1770582447040,500.0,0.00035452,30]
[404807184,1770582447088,150.0,0.00035561,30]
[404807185,1770582447154,150.0,0.00035561,30]
[404807186,1770582447209,359.16308256,0.00035506,30]
[404807187,1770582447258,250.0,0.00035616,30]
[404807188,1770582447477,250.0,0.00035616,30]
[404807189,1770582447714,150.0,0.00035342,30]
[404807190,1770582447848,150.0,0.00035342,30]
[404807191,1770582447897,150.0,0.00035397,30]
[404807192,1770582448030,150.0,0.00035397,30]
[404807193,1770582448084,150.0,0.00035452,30]
[404807194,1770582448145,500.0,0.00035342,30]
[404807195,1770582448194,150.0,0.00035342,30]
[404807196,1770582448244,215.60722138,0.00035452,30]
[404807197,1770582448292,150.0,0.00035342,30]
[404807198,1770582448341,150.0,0.00035397,30]
[404807199,1770582448390,500.0,0.00035397,30]
[404807200,1770582448448,155.36591009,0.00035452,30]
[404807201,1770582448498,500.0,0.00035452,30]
[404807202,1770582448552,150.0,0.00035397,30]
[404807203,1770582448660,150.0,0.00035452,30]
[404807204,1770582469851,26298.42361791,0.00018,2]
[404807205,1770582469876,100000.0,0.00018,2]
[404807210,1770582545799,150.48,0.00030137,30]
[404807211,1770582551123,-500.0,0.00017999,2]
[404807212,1770582551147,-500.0,0.00017999,2]
[404807213,1770582551170,-448.28449181,0.00017999,2]
[404807214,1770582551192,-3895.42413019,0.00018,2]
[404807221,1770582631785,-300.0,0.00017999,2]
[404807223,1770582631795,-1200.0,0.00017999,2]
[404807225,1770582631804,-405.0,0.00017999,2]
[404807226,1770582631815,-300.0,0.00017999,2]
[404807227,1770582631824,-7132.96007001,0.00018,2]
[404807228,1770582631840,-291.47,0.00018,2]
[404807229,1770582631852,-334.02485,0.00018,2]
[404807230,1770582631864,-511.41,0.00018,2]
[404807231,1770582631875,-1531523.90426205,0.00018,2]
[404807232,1770582631884,-200.23286085,0.00019082,2]
[404807233,1770582631894,-1680.0,0.00019735,2]
[404807234,1770582631903,-250.0,0.00019799,2]
[404807235,1770582631913,-2351.0,0.00021639,2]
[404807236,1770582631923,-837.0,0.00023727,2]
[404807237,1770582631933,-250.0,0.00023783,2]
[404807238,1770582631943,-27078.00089288,0.000241,2]
[404807239,1770582631952,-267.49254166,0.00024818,2]
[404807240,1770582631962,-5781.21,0.00024918,2]
[404807241,1770582631973,-250.0,0.00026109,2]
[404807242,1770582631983,-826.10187324,0.00026109,2]
[404807243,1770582631993,-1000.0,0.00027086,2]
[404807244,1770582632004,-186.18,0.000273,2]
[404807245,1770582632013,-203.3499,0.00027373,2]
[404807246,1770582632023,-250.0,0.00027409,2]
[404807247,1770582632032,-500.0,0.00027473,5]
[404807248,1770582632043,-500.0,0.00027473,5]
[404807249,1770582632053,-500.0,0.00027473,5]
[404807250,1770582632063,-525.12123328,0.00027473,5]
[404807252,1770582632073,-222.092999,0.00028,2]
[404807254,1770582632083,-586.3781423,0.00028021,5]
[404807256,1770582632094,-9999.99,0.00028021,2]
[404807257,1770582632103,-4999.99,0.00028021,2]
[404807258,1770582632114,-3636.78,0.00028021,20]
[404807259,1770582632129,-1000.0,0.00028021,5]
[404807260,1770582632138,-1000.0,0.00028021,5]
[404807261,1770582632148,-826.10187324,0.00028087,2]
[404807262,1770582632157,-1132.21493579,0.00028214,2]
[404807263,1770582632169,-3137.86566443,0.00028214,2]
[404807264,1770582632179,-151.0,0.00028298,2]
[404807265,1770582632188,-151.0,0.00028298,2]
[404807266,1770582632198,-151.0,0.00028298,2]
[404807267,1770582632208,-151.0,0.00028298,2]
[404807268,1770582632218,-151.0,0.00028298,2]
[404807269,1770582632227,-151.0,0.00028298,2]
[404807270,1770582632241,-151.0,0.00028298,2]
[404807271,1770582632250,-151.0,0.00028298,2]
[404807272,1770582632260,-151.0,0.00028298,2]
[404807273,1770582632269,-151.0,0.00028298,2]
[404807274,1770582632279,-151.0,0.00028298,2]
[404807275,1770582632288,-151.0,0.00028298,2]
[404807276,1770582632298,-151.0,0.00028298,2]
[404807277,1770582632307,-151.0,0.00028298,2]
[404807278,1770582632317,-151.0,0.00028298,2]
[404807279,1770582632327,-151.0,0.00028298,2]
[404807280,1770582632336,-151.0,0.00028298,2]
[404807281,1770582632346,-151.0,0.00028298,2]
[404807282,1770582632356,-267.57957864,0.00028298,2]
[404807283,1770582632365,-151.0,0.00028313,7]
[404807284,1770582632375,-500.0,0.00028314,2]
[404807285,1770582632384,-7125.93,0.00028314,2]
[404807286,1770582632394,-251721.14,0.00028314,10]
[404807287,1770582632402,-9999.99,0.00028314,2]
[404807288,1770582632412,-9999.99,0.00028314,2]
[404807289,1770582632421,-349.13,0.00028314,2]
[404807290,1770582632431,-1183.2,0.00028314,2]
[404807291,1770582632440,-999.99,0.00028314,2]
[404807292,1770582632449,-150.99,0.00028314,2]
[404807293,1770582632459,-9999.99,0.00028314,2]
[404807294,1770582632468,-1471.2,0.00028314,2]
[404807295,1770582632477,-9999.99,0.00028314,2]
[404807296,1770582632487,-9340.83,0.00028314,5]
[404807297,1770582632496,-9999.99,0.00028314,2]
[404807298,1770582632506,-1202.13,0.00028314,2]
[404807299,1770582632515,-299.99,0.00028314,12]
[404807300,1770582632524,-427.79,0.00028314,2]
[404807301,1770582632534,-2006.11,0.00028314,2]
[404807302,1770582632543,-14017.59,0.00028314,2]
[404807303,1770582632552,-9999.99,0.00028314,2]
[404807304,1770582632563,-150.99,0.00028314,2]
[404807305,1770582632572,-272214.60837497,0.00028315,2]
[404807306,1770582632584,-5970.1415697,0.00028315,2]
[404807307,1770582632596,-34386.04186184,0.00028315,2]
[404807308,1770582632608,-710.81,0.00028315,2]
[404807309,1770582632624,-273.63724884,0.00028315,2]
[404807310,1770582632639,-21230.17407283,0.00028315,2]
[404807311,1770582637919,-170.9,0.000238,7]
[404807312,1770582637933,-500.0,0.00027473,5]
[404807313,1770582637948,-500.0,0.00027473,5]
[404807314,1770582637959,-509.61964186,0.00028021,5]
[404807315,1770582637971,-1000.0,0.00028021,5]
[404807316,1770582637982,-61003.8188351,0.00028315,2]
[404807317,1770582637994,-1500.0,0.00028568,5]
[404807318,1770582638006,-1000.0,0.00028568,5]
[404807319,1770582638020,-500.0,0.00028568,5]
[404807320,1770582638033,-500.0,0.00028588,2]
[404807321,1770582638045,-166.66,0.00028622,2]
[404807322,1770582638057,-2008.70815555,0.00029116,5]
[404807323,1770582638071,-1924.43259701,0.00029233,10]
[404807324,1770582638085,-498.98998669,0.00029233,10]
[404807325,1770582638099,-1046.26,0.00029233,10]
[404807326,1770582638113,-2525.9921163,0.00029233,10]
[404807327,1770582638127,-502.5247929,0.00029556,2]
[404807328,1770582638139,-502.5247929,0.0002992,2]
[404807329,1770582638150,-1132.21493571,0.00029991,2]
[404807330,1770582638163,-3137.86566439,0.00029991,2]
[404807331,1770582638175,-1453.98102222,0.0003,2]
[404807332,1770582638187,-826.10187324,0.00030066,2]
[404807333,1770582638199,-833.35169146,0.00030152,2]
[404807334,1770582638211,-1000.0,0.00030343,2]
[404807335,1770582638223,-1000.0,0.00030468,20]
[404807336,1770582638235,-1000.0,0.00030471,2]
[404807337,1770582638247,-166.66,0.00030984,2]
[404807338,1770582638259,-1013.85,0.00030989,2]
[404807339,1770582638271,-826.10187324,0.00031055,2]
[404807340,1770582638282,-500.0,0.00031388,2]
[404807341,1770582638296,-1132.21493571,0.00031768,2]
[404807342,1770582638308,-3137.86566439,0.00031768,2]
[404807343,1770582638321,-826.10187324,0.00032044,2]
[404807344,1770582638334,-509.0,0.00032616,2]
[404807345,1770582638349,-161.88,0.00032909,2]
[404807346,1770582638361,-167.03,0.00033,14]
[404807347,1770582638374,-826.10187324,0.00033033,2]
[404807348,1770582638384,-166.66,0.00033346,2]
[404807349,1770582638395,-150.0,0.0003338,20]
[404807350,1770582638405,-1074.66606052,0.000334,2]
[404807351,1770582638414,-1132.21493571,0.00033544,2]
[404807352,1770582638424,-3137.86566439,0.00033544,2]
[404807353,1770582638436,-8911.7183,0.00033582,2]
[404807354,1770582638445,-1298.2069,0.00033582,2]
[404807355,1770582638455,-1000.0,0.00033582,2]
[404807356,1770582638465,-1000.0,0.00033857,2]
[404807357,1770582638474,-826.10187324,0.00034022,2]
[404807358,1770582638484,-1002.16615002,0.00034029,2]
[404807359,1770582638494,-267.49254166,0.00034512,2]
[404807360,1770582638503,-150.0,0.00034904,2]
[404807361,1770582638513,-826.10187324,0.00035012,2]
[404807362,1770582638523,-1741.73214038,0.00035067,2]
[404807363,1770582638532,-1074.66606047,0.00035196,2]
[404807364,1770582638541,-1132.21493571,0.00035321,2]
[404807365,1770582638551,-3137.86566439,0.00035321,2]
[404807366,1770582638560,-150.0,0.00035342,2]
[404807367,1770582638569,-150.0,0.00035397,2]
[404807368,1770582638578,-590.33554475,0.00035616,7]
[404807369,1770582638587,-826.10187324,0.00036001,2]
[404807370,1770582638596,-161.88,0.000362,2]
[404807371,1770582638605,-500.0,0.00036219,2]
[404807372,1770582638615,-180.417,0.00036281,44]
[404807373,1770582638625,-150.0,0.00036649,2]
[404807374,1770582638635,-5781.21,0.00036698,2]
[404807375,1770582638645,-1074.66606047,0.00036992,2]
[404807376,1770582638655,-1132.21493571,0.00037098,2]
[404807377,1770582638664,-3137.86566439,0.00037098,2]
[404807378,1770582638673,-1000.0,0.00037243,2]
[404807379,1770582638683,-1000.0,0.00037301,2]
[404807380,1770582638693,-1741.73214038,0.00037352,2]
[404807381,1770582638703,-509.0,0.00037355,7]
[404807382,1770582638712,-300.0,0.00037808,2]
[404807383,1770582638722,-150.0,0.00038482,2]
[404807384,1770582638731,-1074.66606047,0.00038789,2]
[404807385,1770582638740,-1132.21493571,0.00038875,2]
[404807386,1770582638750,-3137.86566439,0.00038875,2]
[404807387,1770582638759,-826.10187324,0.00038968,2]
[404807388,1770582638769,-226.77779271,0.00039,120]
[404807389,1770582638778,-1000.0,0.00039144,2]
[404807390,1770582638787,-1000.0,0.00039299,14]
[404807391,1770582638797,-917.0,0.00039394,2]
[404807392,1770582638806,-3255.0,0.00039394,2]
[404807393,1770582638816,-1335.0,0.00039394,2]
[404807394,1770582638826,-161.88,0.00039491,2]
[404807395,1770582638836,-1000.0,0.00039573,14]
[404807396,1770582638845,-1741.73214038,0.00039636,2]
[404807397,1770582638854,-500.0,0.00039773,5]
[404807398,1770582638864,-500.0,0.00039773,5]
[404807399,1770582638874,-1499.0,0.00039847,14]
[404807400,1770582638884,-826.10187324,0.00039957,2]
[404807401,1770582638893,-151.0,0.00039997,14]
[404807402,1770582638903,-20844.03,0.0004,120]
[404807403,1770582638913,-22500.0,0.0004,120]
[404807404,1770582638923,-152.0,0.0004,120]
[404807405,1770582638932,-154.0,0.0004,120]
[404807406,1770582638943,-433.80361693,0.00040321,5]
[404807407,1770582638952,-587.12032473,0.00040321,5]
[404807408,1770582638962,-22500.0,0.00040375,120]
[404807409,1770582638971,-150.0,0.00040406,2]
[404807410,1770582638980,-1074.66606047,0.00040585,2]
[404807411,1770582638990,-1000.0,0.00040628,2]
[404807412,1770582638999,-640.5,0.00040644,60]
[404807413,1770582639010,-1132.21493571,0.00040651,15]
[404807414,1770582639019,-3137.86566439,0.00040651,15]
[404807415,1770582639029,-539.841759,0.000407,14]
[404807416,1770582639038,-22500.0,0.0004075,120]
[404807417,1770582639047,-152.0,0.000408,120]
[404807418,1770582639057,-7992.0,0.00040829,5]
[404807419,1770582639067,-8141.44,0.000409,14]
[404807420,1770582639076,-826.10187324,0.00040947,2]
[404807421,1770582639086,-154.0,0.00041,120]
[404807422,1770582639095,-363.77058182,0.00041095,120]
[404807423,1770582639105,-539.84175899,0.00041576,15]
[404807424,1770582639116,-152.0,0.000416,120]
[404807425,1770582639463,-11361.0,0.000417,117]
[404807426,1770582639477,-1741.73214038,0.00041921,28]
[404807427,1770582639487,-826.10187324,0.00041936,2]
[404807428,1770582639497,-213.75126474,0.00042,2]
[404807429,1770582639506,-509.0,0.00042093,13]
[404807430,1770582639514,-154.0,0.000421,120]
[404807431,1770582639525,-636.0,0.00042291,120]
[404807432,1770582639534,-1074.66606047,0.00042381,7]
[404807433,1770582639544,-917.0,0.00042394,2]
[404807434,1770582639553,-3255.0,0.00042394,2]
[404807435,1770582639562,-1335.0,0.00042394,2]
[404807436,1770582639571,-152.0,0.000424,120]
[404807437,1770582639580,-150.0,0.00042426,120]
[404807438,1770582639592,-1132.21493571,0.00042428,15]
[404807439,1770582639603,-3137.86566439,0.00042428,15]
[404807440,1770582639612,-539.84175899,0.00042453,17]
[404807441,1770582639621,-169.75030081,0.00042466,30]
[404807442,1770582639631,-20000.0,0.00042466,120]
[404807443,1770582639640,-164.0,0.0004257,16]
[404807444,1770582639649,-2827.0,0.00042574,16]
[404807445,1770582639658,-8141.44,0.000426,14]
[404807446,1770582639667,-539.29236495,0.00042615,60]
[404807447,1770582639676,-840.0,0.00042674,16]
[404807448,1770582639685,-800.0,0.0004274,7]
[404807449,1770582639694,-200.0,0.00042769,2]
[404807450,1770582639704,-161.88,0.00042782,2]
[404807451,1770582639713,-3273.88589306,0.000428,30]
[404807452,1770582639724,-152.0,0.00042845,3]
[404807453,1770582639734,-767.86506612,0.000429,120]
[404807454,1770582639743,-767.86506602,0.000429,120]
[404807455,1770582639752,-767.86506602,0.000429,120]
[404807456,1770582639762,-767.86506602,0.000429,120]
[404807457,1770582639771,-767.86506602,0.000429,120]
[404807458,1770582639780,-767.86506602,0.000429,120]
[404807459,1770582639790,-767.86506602,0.000429,120]
[404807460,1770582639800,-767.86506602,0.000429,120]
[404807461,1770582639810,-767.86506602,0.000429,120]
[404807462,1770582639823,-767.86506602,0.000429,120]
[404807463,1770582639832,-767.86506602,0.000429,120]
[404807464,1770582639841,-767.86506602,0.000429,120]
[404807465,1770582639851,-767.86506602,0.000429,120]
[404807466,1770582639870,-767.86506602,0.000429,120]
[404807467,1770582639881,-767.86506602,0.000429,120]
[404807468,1770582639892,-767.86506602,0.000429,120]
[404807469,1770582639903,-767.86506602,0.000429,120]
[404807470,1770582639913,-767.86506602,0.000429,120]
[404807471,1770582639924,-236.14884171,0.000429,30]
[404807472,1770582639935,-200.0,0.00042903,2]
[404807473,1770582639944,-826.10187324,0.00042925,2]
[404807474,1770582639954,-4555.29193256,0.00042931,7]
[404807475,1770582639964,-169.75030081,0.00042932,30]
[404807476,1770582639974,-150.0,0.00042973,10]
[404807477,1770582639984,-300.0,0.00042973,5]
[404807478,1770582639995,-827.0,0.00042979,16]
[404807479,1770582640006,-348.93247409,0.00042998,30]
[404807480,1770582640017,-212.0,0.00043,30]
[404807481,1770582640028,-2000.0,0.00043,2]
[404807482,1770582640040,-10000.0,0.00043,120]
[404807483,1770582640052,-48951.23762148,0.00043,2]
[404807484,1770582640063,-154.0,0.000431,120]
[404807485,1770582640074,-164.0,0.00043149,16]
[404807486,1770582640085,-2827.0,0.00043196,16]
[404807487,1770582640097,-152.0,0.000432,120]
[404807488,1770582640109,-7480.75096343,0.0004321,120]
[404807489,1770582640120,-840.0,0.00043244,16]
[404807490,1770582640136,-164.0,0.00043277,16]
[404807491,1770582640146,-780.35191,0.000433,20]
[404807492,1770582640156,-539.84175899,0.00043329,18]
[404807493,1770582640167,-767.86506602,0.00043363,120]
[404807494,1770582640177,-200.0,0.00043365,2]
[404807495,1770582640187,-169.75030081,0.00043397,30]
[404807496,1770582640197,-152.52520712,0.000434,120]
[404807497,1770582640208,-530.22730493,0.000434,30]
[404807498,1770582640218,-186.60204479,0.00043421,2]
[404807499,1770582640234,-8141.44,0.000435,14]
[404807500,1770582640244,-251.3634381,0.00043521,10]
[404807501,1770582640253,-300.51862815,0.00043521,5]
[404807502,1770582640264,-2827.0,0.00043531,16]
[404807503,1770582640275,-196.0,0.00043606,16]
[404807504,1770582640285,-1130.65671128,0.00043649,2]
[404807506,1770582640294,-1908.76539439,0.0004365,2]
[404807508,1770582640304,-150.0,0.00043656,30]
[404807510,1770582640314,-1055.36341633,0.00043656,30]
[404807512,1770582640323,-150.0,0.00043656,30]
[404807514,1770582640333,-3240.89898856,0.00043656,30]
[404807516,1770582640344,-150.0,0.00043656,30]
[404807518,1770582640353,-748.98175907,0.00043656,30]
[404807520,1770582640363,-844.17346933,0.0004369,120]
[404807522,1770582640373,-256.44961567,0.000437,120]
[404807524,1770582640382,-25000.0,0.00043729,15]
[404807526,1770582640391,-25000.0,0.00043738,15]
[404807528,1770582640401,-25000.0,0.00043747,15]
[404807530,1770582640411,-300.0,0.00043749,30]
[404807533,1770582640424,-666.0,0.00043749,30]
[404807535,1770582640435,-269668.20935234,0.0004375,120]
[404807537,1770582640445,-151.0,0.0004375,120]
[404807539,1770582640454,-151.0,0.0004375,120]
[404807541,1770582640464,-151.0,0.0004375,120]
[404807543,1770582640475,-151.0,0.0004375,120]
[404807545,1770582640484,-151.0,0.0004375,120]
[404807547,1770582640495,-151.0,0.0004375,14]
[404807549,1770582640505,-151.0,0.0004375,120]
[404807551,1770582640515,-151.0,0.0004375,31]
[404807553,1770582640524,-151.0,0.0004375,120]
[404807555,1770582640534,-151.0,0.0004375,120]
[404807557,1770582640544,-151.0,0.0004375,120]
[404807559,1770582640553,-151.0,0.0004375,120]
[404807561,1770582640562,-151.0,0.0004375,7]
[404807563,1770582640572,-151.000008,0.0004375,120]
[404807565,1770582640581,-151.0,0.0004375,120]
[404807567,1770582640591,-151.0,0.0004375,120]
[404807569,1770582640605,-169.109887,0.0004375,120]
[404807571,1770582640619,-151.0,0.0004375,120]
[404807573,1770582640629,-151.0,0.0004375,120]
[404807575,1770582640639,-151.0,0.0004375,120]
[404807577,1770582640648,-300.0,0.00043755,30]
[404807579,1770582640658,-25000.0,0.00043756,15]
[404807581,1770582640667,-300.0,0.00043764,30]
[404807583,1770582640676,-25000.0,0.00043765,15]
[404807585,1770582640687,-151.0,0.00043773,120]
[404807588,1770582640697,-151.545217,0.00043773,120]
[404807590,1770582640707,-151.545217,0.00043773,120]
[404807591,1770582640719,-151.545217,0.00043773,120]
[404807594,1770582640729,-151.545217,0.00043773,120]
[404807596,1770582640739,-151.0,0.00043773,120]
[404807598,1770582640749,-164.3759,0.00043773,120]
[404807600,1770582640759,-25000.0,0.00043773,15]
[404807602,1770582640768,-25000.0,0.00043782,15]
[404807604,1770582640777,-25000.0,0.00043791,15]
[404807606,1770582640787,-151.0,0.00043797,120]
[404807608,1770582640797,-25000.0,0.000438,15]
[404807610,1770582640807,-151.0,0.00043808,120]
[404807612,1770582640818,-25000.0,0.00043809,15]
[404807614,1770582640830,-25000.0,0.00043817,15]
[404807616,1770582640840,-25000.0,0.00043826,15]
[404807618,1770582640849,-500.0,0.00043835,120]
[404807621,1770582640859,-500.0,0.00043835,2]
[404807623,1770582640869,-500.0,0.00043835,2]
[404807625,1770582640879,-500.0,0.00043835,2]
[404807627,1770582640890,-500.0,0.00043835,2]